[Event "Championnat d'Europe Rapide"]
[Date "2024.12.08"]
[White "Baskin, Robert"]
[Black "Triadu Cassa, Jordi"]
[WhiteElo "2442"]
[BlackElo "2108"]
[Round "8.50"]
[Result "1-0"]
[TimeControl "900+10"]

1. e4 {[%clk 00:15:16]} e5 {[%emt 00:00:02] [%clk 00:15:19]} 2. Nf3 {[%emt
00:00:05] [%clk 00:15:22]} Nc6 {[%emt 00:00:02] [%clk 00:15:27]} 3. Bb5 {[%emt
00:00:07] [%clk 00:15:25]} a6 {[%emt 00:00:01] [%clk 00:15:36]} 4. Ba4 {[%emt
00:00:01] [%clk 00:15:33]} Nf6 {[%emt 00:00:01] [%clk 00:15:45]} 5. O-O {[%emt
00:00:03] [%clk 00:15:41]} Be7 {[%emt 00:00:01] [%clk 00:15:54]} 6. Re1 {[%emt
00:00:05] [%clk 00:15:46]} b5 {[%emt 00:00:01] [%clk 00:16:03]} 7. Bb3 {[%clk
00:15:55]} d6 {[%emt 00:00:01] [%clk 00:16:12]} 8. c3 {[%emt 00:00:03] [%clk
00:16:02]} O-O {[%emt 00:00:03] [%clk 00:16:19]} 9. h3 {[%emt 00:00:02] [%clk
00:16:10]} Na5 {[%emt 00:00:02] [%clk 00:16:27]} 10. Bc2 {[%emt 00:00:01] [%clk
00:16:18]} c5 {[%emt 00:00:01] [%clk 00:16:36]} 11. d4 {[%emt 00:00:02] [%clk
00:16:26]} Qc7 {[%clk 00:16:46]} 12. Nbd2 {[%emt 00:00:20] [%clk 00:16:16]} cxd4
{[%emt 00:00:02] [%clk 00:16:54]} 13. cxd4 {[%clk 00:16:24]} Bb7 {[%emt
00:00:01] [%clk 00:17:04]} 14. d5 {[%emt 00:01:20] [%clk 00:15:15]} Rac8 {[%emt
00:00:02] [%clk 00:17:12]} 15. Bd3 {[%emt 00:00:02] [%clk 00:15:22]} Nd7 {[%emt
00:00:03] [%clk 00:17:20]} 16. Nf1 {[%emt 00:02:14] [%clk 00:13:18]} f5 {[%emt
00:01:00] [%clk 00:16:30]} 17. Ne3 {[%emt 00:03:08] [%clk 00:10:20]} f4 {[%emt
00:04:28] [%clk 00:12:12]} 18. Nf5 {[%emt 00:01:50] [%clk 00:08:40]} Nc5 {[%emt
00:03:25] [%clk 00:08:57]} 19. Nxe7+ {[%emt 00:00:33] [%clk 00:08:17]} Qxe7
{[%emt 00:00:02] [%clk 00:09:05]} 20. Bc2 {[%emt 00:01:09] [%clk 00:07:18]} Nc4
{[%emt 00:00:06] [%clk 00:09:09]} 21. b3 {[%emt 00:00:11] [%clk 00:07:17]} Nb6
{[%emt 00:00:07] [%clk 00:09:12]} 22. Bd2 {[%emt 00:00:06] [%clk 00:07:20]} Rc7
{[%emt 00:02:17] [%clk 00:07:06]} 23. Ba5 {[%emt 00:00:22] [%clk 00:07:08]} Ncd7
{[%emt 00:00:30] [%clk 00:06:45]} 24. Rc1 {[%emt 00:00:17] [%clk 00:07:01]} h6
{[%emt 00:01:08] [%clk 00:05:48]} 25. Qd2 {[%emt 00:00:28] [%clk 00:06:42]} g5
{[%emt 00:00:16] [%clk 00:05:43]} 26. Bd3 {[%emt 00:00:17] [%clk 00:06:35]} Rfc8
{[%emt 00:01:18] [%clk 00:04:35]} 27. Rxc7 {[%emt 00:00:22] [%clk 00:06:22]}
Rxc7 {[%emt 00:00:01] [%clk 00:04:44]} 28. Rc1 {[%emt 00:00:03] [%clk 00:06:30]}
Qd8 {[%emt 00:03:06] [%clk 00:01:48]} 29. Rxc7 {[%emt 00:01:18] [%clk 00:05:22]}
Qxc7 {[%emt 00:00:01] [%clk 00:01:57]} 30. h4 {[%clk 00:05:30]} g4 {[%emt
00:00:37] [%clk 00:01:30]} 31. Nh2 {[%emt 00:00:02] [%clk 00:05:38]} Nf6 {[%emt
00:01:06] [%clk 00:00:34]} 32. g3 {[%emt 00:02:10] [%clk 00:03:38]} fxg3 {[%emt
00:00:12] [%clk 00:00:32]} 33. fxg3 {[%emt 00:00:14] [%clk 00:03:34]} Qc5+
{[%emt 00:00:01] [%clk 00:00:42]} 34. Qf2 {[%emt 00:00:43] [%clk 00:03:01]}
Qxf2+ {[%emt 00:00:23] [%clk 00:00:28]} 35. Kxf2 {[%emt 00:00:01] [%clk
00:03:10]} Nbd7 {[%emt 00:00:05] [%clk 00:00:34]} 36. Ke3 {[%emt 00:00:08] [%clk
00:03:12]} h5 {[%emt 00:00:07] [%clk 00:00:37]} 37. Nf1 {[%emt 00:00:31] [%clk
00:02:51]} Kf7 {[%emt 00:00:02] [%clk 00:00:45]} 38. Nd2 {[%emt 00:00:06] [%clk
00:02:55]} Ke7 {[%emt 00:00:07] [%clk 00:00:48]} 39. b4 {[%emt 00:01:16] [%clk
00:01:49]} Bc8 {[%emt 00:00:04] [%clk 00:00:54]} 40. Nb1 {[%emt 00:00:01] [%clk
00:01:57]} Ne8 {[%emt 00:00:15] [%clk 00:00:49]} 41. Nc3 {[%emt 00:00:08] [%clk
00:01:59]} Nb8 {[%emt 00:00:09] [%clk 00:00:51]} 42. a4 {[%emt 00:00:15] [%clk
00:01:53]} bxa4 {[%emt 00:00:18] [%clk 00:00:43]} 43. Nxa4 {[%emt 00:00:02]
[%clk 00:02:02]} Nd7 {[%emt 00:00:09] [%clk 00:00:44]} 44. Kd2 {[%emt 00:00:57]
[%clk 00:01:14]} Bb7 {[%emt 00:00:03] [%clk 00:00:51]} 45. Nc3 {[%emt 00:00:19]
[%clk 00:01:05]} Nb8 {[%emt 00:00:12] [%clk 00:00:49]} 46. Nd1 {[%emt 00:00:02]
[%clk 00:01:14]} Bc8 {[%emt 00:00:03] [%clk 00:00:56]} 47. Ne3 {[%emt 00:00:03]
[%clk 00:01:21]} Bd7 {[%emt 00:00:02] [%clk 00:01:04]} 48. Bb6 {[%emt 00:00:16]
[%clk 00:01:15]} Bb5 {[%emt 00:00:08] [%clk 00:01:06]} 49. Bxb5 {[%emt 00:00:16]
[%clk 00:01:09]} axb5 {[%emt 00:00:03]} 50. Nd1 {[%emt 00:00:16]} Na6 {[%clk
00:01:08]} 51. Ba5 {[%emt 00:00:14] [%clk 00:01:12]} Kd7 {[%emt 00:00:08] [%clk
00:01:11]} 52. Ne3 {[%emt 00:00:20] [%clk 00:01:02]} Ke7 {[%emt 00:00:27] [%clk
00:00:54]} 53. Nf5+ {[%emt 00:00:31] [%clk 00:00:41]} Kf6 {[%emt 00:00:02] [%clk
00:01:02]} 54. Kd3 {[%emt 00:00:04] [%clk 00:00:47]} Kf7 {[%emt 00:00:01] [%clk
00:01:11]} 55. Kc3 {[%emt 00:00:05] [%clk 00:00:53]} Nb8 {[%emt 00:00:32] [%clk
00:00:48]} 56. Bd8 {[%emt 00:00:04] [%clk 00:00:59]} Nd7 {[%emt 00:00:09] [%clk
00:00:50]} 57. Be7 {[%emt 00:00:30] [%clk 00:00:39]} Ng7 {[%emt 00:00:46] [%clk
00:00:14]} 58. Nxg7 {[%emt 00:00:09] [%clk 00:00:40]} Kxe7 {[%emt 00:00:08]
[%clk 00:00:15]} 59. Nf5+ {[%emt 00:00:02] [%clk 00:00:49]} Kd8 {[%emt 00:00:13]
[%clk 00:00:12]} 60. Nxd6 {[%emt 00:00:04]} Nf6 {[%emt 00:00:04] [%clk
00:00:17]} 61. Kd3 {[%emt 00:00:03] [%clk 00:01:02]} Kc7 {[%emt 00:00:07]} 1-0

[Site "Europe Echecs"]

[Event "Championnat d'Europe Rapide"]
[Date "2024.12.08"]
[White "Bognar, Csaba Dr."]
[Black "Bulmaga, Irina"]
[WhiteElo "2067"]
[BlackElo "2386"]
[Round "8.51"]
[Result "1/2-1/2"]
[TimeControl "900+10"]

1. d4 {[%emt 00:34:47] [%clk 00:15:19]} Nf6 {[%emt 00:00:01] [%clk 00:15:18]} 2.
c4 {[%emt 00:00:02] [%clk 00:15:26]} e6 {[%emt 00:00:02] [%clk 00:15:26]} 3. Nf3
{[%emt 00:00:04] [%clk 00:15:33]} b6 {[%emt 00:00:02] [%clk 00:15:33]} 4. g3
{[%emt 00:00:03] [%clk 00:15:40]} Bb7 {[%emt 00:00:02] [%clk 00:15:41]} 5. Bg2
{[%emt 00:00:02] [%clk 00:15:47]} Be7 {[%emt 00:00:08] [%clk 00:15:44]} 6. O-O
{[%emt 00:00:03] [%clk 00:15:54]} O-O {[%emt 00:00:03] [%clk 00:15:51]} 7. b3
{[%emt 00:00:26] [%clk 00:15:38]} d5 {[%emt 00:00:09] [%clk 00:15:52]} 8. Nbd2
{[%emt 00:00:37] [%clk 00:15:11]} Nbd7 {[%emt 00:00:06] [%clk 00:15:57]} 9. Bb2
{[%emt 00:00:02] [%clk 00:15:19]} c5 {[%emt 00:00:18] [%clk 00:15:49]} 10. e3
{[%emt 00:00:04] [%clk 00:15:24]} Rc8 {[%emt 00:00:16] [%clk 00:15:43]} 11. Rc1
{[%emt 00:00:02] [%clk 00:15:32]} Re8 {[%emt 00:00:15] [%clk 00:15:39]} 12. Re1
{[%emt 00:00:02] [%clk 00:15:40]} Rc7 {[%emt 00:00:34] [%clk 00:15:15]} 13. Ne5
{[%emt 00:01:00] [%clk 00:14:50]} Bf8 {[%emt 00:01:38] [%clk 00:13:47]} 14. Nd3
{[%emt 00:00:50] [%clk 00:14:10]} dxc4 {[%emt 00:00:38] [%clk 00:13:18]} 15.
Nxc4 {[%emt 00:01:01] [%clk 00:13:19]} Bxg2 {[%emt 00:01:12] [%clk 00:12:17]}
16. Kxg2 {[%emt 00:00:01] [%clk 00:13:27]} Ne4 {[%emt 00:01:55] [%clk 00:10:32]}
17. f3 {[%emt 00:00:23] [%clk 00:13:15]} Nd6 {[%emt 00:00:56] [%clk 00:09:46]}
18. e4 {[%emt 00:01:00] [%clk 00:12:24]} cxd4 {[%emt 00:00:14] [%clk 00:09:42]}
19. Nxd6 {[%emt 00:00:13] [%clk 00:12:22]} Bxd6 {[%emt 00:00:06] [%clk
00:09:45]} 20. Bxd4 {[%emt 00:00:19] [%clk 00:12:13]} Ba3 {[%emt 00:00:41] [%clk
00:09:15]} 21. Bb2 {[%emt 00:00:22] [%clk 00:12:01]} Bxb2 {[%emt 00:00:13] [%clk
00:09:12]} 22. Nxb2 {[%emt 00:00:01] [%clk 00:12:10]} Qc8 {[%emt 00:02:03]} 23.
Nc4 {[%clk 00:11:17]} Rd8 {[%emt 00:00:03] [%clk 00:08:28]} 24. Nd6 {[%emt
00:01:21] [%clk 00:10:05]} Qb8 {[%emt 00:00:01] [%clk 00:08:37]} 25. Rxc7 {[%emt
00:00:20] [%clk 00:09:56]} Qxc7 {[%emt 00:00:02] [%clk 00:08:45]} 26. Re2 {[%clk
00:10:04]} Ne5 {[%emt 00:03:06] [%clk 00:05:49]} 27. Rd2 {[%emt 00:00:05] [%clk
00:10:09]} h5 {[%emt 00:00:24] [%clk 00:05:36]} 28. Nb5 {[%emt 00:01:02] [%clk
00:09:17]} Rxd2+ {[%emt 00:00:02] [%clk 00:05:43]} 29. Qxd2 {[%emt 00:00:01]
[%clk 00:09:26]} Qc5 {[%emt 00:00:30] [%clk 00:05:23]} 30. Nc3 {[%emt 00:00:22]
[%clk 00:09:14]} b5 {[%emt 00:00:33] [%clk 00:05:01]} 31. Ne2 {[%emt 00:00:10]
[%clk 00:09:14]} b4 {[%emt 00:00:13] [%clk 00:04:58]} 32. Qd8+ {[%emt 00:01:19]
[%clk 00:08:05]} Kh7 {[%emt 00:00:03] [%clk 00:05:05]} 33. Qg5 {[%emt 00:00:01]
[%clk 00:08:13]} g6 {[%emt 00:01:01] [%clk 00:04:16]} 34. f4 {[%emt 00:00:34]
[%clk 00:07:48]} f6 {[%emt 00:01:59] [%clk 00:02:26]} 35. Qxf6 {[%emt 00:00:04]
[%clk 00:07:55]} Ng4 {[%clk 00:02:36]} 36. Qf7+ {[%emt 00:00:10] [%clk
00:07:54]} Kh6 {[%emt 00:00:02] [%clk 00:02:44]} 37. Kh1 {[%emt 00:01:08] [%clk
00:06:56]} Nf2+ {[%emt 00:00:11] [%clk 00:02:43]} 38. Kg2 {[%emt 00:00:01] [%clk
00:07:04]} Ng4 {[%emt 00:01:34] [%clk 00:01:20]} 39. Kh1 {[%emt 00:00:07] [%clk
00:07:06]} Qd6 {[%emt 00:00:30] [%clk 00:01:01]} 40. Qg8 {[%emt 00:00:37] [%clk
00:06:39]} Nf6 {[%emt 00:00:32] [%clk 00:00:39]} 41. Qh8+ {[%emt 00:00:26] [%clk
00:06:24]} Nh7 {[%clk 00:00:48]} 42. Qd4 {[%emt 00:00:08] [%clk 00:06:25]} Qa6
{[%emt 00:00:11] [%clk 00:00:47]} 43. Qd2 {[%emt 00:00:03] [%clk 00:06:32]} Nf6
{[%emt 00:00:22] [%clk 00:00:34]} 44. e5 {[%emt 00:01:19] [%clk 00:05:24]} Ng4
{[%emt 00:00:31] [%clk 00:00:13]} 45. f5+ {[%emt 00:00:59] [%clk 00:04:34]} g5
{[%emt 00:00:02] [%clk 00:00:22]} 46. h4 {[%emt 00:00:01] [%clk 00:04:43]} Qc6+
{[%emt 00:00:16] [%clk 00:00:16]} 47. Kg1 {[%emt 00:00:05] [%clk 00:04:48]} Qc5+
{[%emt 00:00:09] [%clk 00:00:17]} 48. Kh1 {[%emt 00:00:07] [%clk 00:04:51]} Nf2+
{[%emt 00:00:10] [%clk 00:00:17]} 49. Kg2 {[%emt 00:00:18] [%clk 00:04:43]} Ne4
{[%emt 00:00:02] [%clk 00:00:25]} 50. hxg5+ {[%emt 00:00:06] [%clk 00:04:47]}
Nxg5 {[%emt 00:00:01] [%clk 00:00:33]} 51. Qd8 {[%emt 00:01:37] [%clk 00:03:21]}
Qxe5 {[%emt 00:00:21] [%clk 00:00:22]} 52. Qf8+ {[%emt 00:00:05] [%clk
00:03:25]} Kh7 {[%emt 00:00:14] [%clk 00:00:19]} 53. Qe7+ {[%emt 00:00:09] [%clk
00:03:26]} Kh6 {[%emt 00:00:08] [%clk 00:00:20]} 54. Qf8+ {[%emt 00:00:02] [%clk
00:03:35]} Kh7 {[%emt 00:00:01] [%clk 00:00:29]} 55. Qe7+ {[%clk 00:03:45]} Kh6
{[%emt 00:00:11] [%clk 00:00:29]} 1/2-1/2

[Site "Europe Echecs"]

[Event "Championnat d'Europe Rapide"]
[Date "2024.12.08"]
[White "Baliasnyj, Timur"]
[Black "Dobrikov, Marco"]
[WhiteElo "2174"]
[BlackElo "2407"]
[Round "8.52"]
[Result "0-1"]
[TimeControl "900+10"]

1. Nf3 {[%emt 00:36:41] [%clk 00:15:10]} g6 {[%emt 00:00:34] [%clk 00:15:08]} 2.
c4 {[%emt 00:00:09] [%clk 00:15:17]} Bg7 {[%emt 00:00:02] [%clk 00:15:17]} 3. g3
{[%clk 00:15:26]} Nf6 {[%emt 00:00:20] [%clk 00:15:07]} 4. Bg2 {[%emt 00:00:01]
[%clk 00:15:35]} O-O {[%emt 00:00:02] [%clk 00:15:14]} 5. O-O {[%emt 00:00:03]
[%clk 00:15:42]} d6 {[%emt 00:00:01] [%clk 00:15:23]} 6. Nc3 {[%emt 00:00:06]
[%clk 00:15:46]} e5 {[%emt 00:00:01] [%clk 00:15:32]} 7. Rb1 {[%emt 00:01:00]}
a5 {[%clk 00:14:55]} 8. a3 {[%emt 00:00:18] [%clk 00:15:36]} c6 {[%emt 00:00:59]
[%clk 00:14:05]} 9. d3 {[%emt 00:01:53] [%clk 00:13:54]} Re8 {[%emt 00:00:01]
[%clk 00:14:14]} 10. b4 {[%emt 00:00:34] [%clk 00:13:30]} axb4 {[%emt 00:00:01]
[%clk 00:14:22]} 11. axb4 {[%emt 00:00:01] [%clk 00:13:39]} d5 {[%emt 00:00:08]
[%clk 00:14:25]} 12. b5 {[%emt 00:02:47] [%clk 00:11:02]} Nbd7 {[%emt 00:01:11]
[%clk 00:13:24]} 13. bxc6 {[%emt 00:00:43] [%clk 00:10:29]} bxc6 {[%emt
00:00:01] [%clk 00:13:33]} 14. cxd5 {[%emt 00:00:01] [%clk 00:10:37]} cxd5
{[%emt 00:00:02] [%clk 00:13:42]} 15. Nb5 {[%emt 00:00:57] [%clk 00:09:50]} Ba6
{[%emt 00:00:49] [%clk 00:13:03]} 16. Qc2 {[%emt 00:02:50] [%clk 00:07:10]} Rb8
{[%emt 00:01:35] [%clk 00:11:38]} 17. Nd6 {[%emt 00:02:10] [%clk 00:05:09]} Rxb1
{[%emt 00:00:30] [%clk 00:11:19]} 18. Qxb1 {[%emt 00:00:01] [%clk 00:05:17]} Rf8
{[%emt 00:00:35] [%clk 00:10:55]} 19. Ba3 {[%emt 00:00:24] [%clk 00:05:03]} Qa5
{[%emt 00:01:17] [%clk 00:09:48]} 20. Qc1 {[%emt 00:03:25] [%clk 00:01:48]} h6
{[%emt 00:00:43] [%clk 00:09:16]} 21. Rd1 {[%emt 00:01:07] [%clk 00:00:50]} Rb8
{[%emt 00:00:05] [%clk 00:09:20]} 22. Nd2 {[%emt 00:00:29] [%clk 00:00:32]} Bf8
{[%emt 00:00:13] [%clk 00:09:17]} 23. e4 {[%emt 00:00:03] [%clk 00:00:40]} Qb6
{[%emt 00:01:05] [%clk 00:08:21]} 24. Nxf7 {[%emt 00:00:24] [%clk 00:00:26]}
Kxf7 {[%emt 00:00:04] [%clk 00:08:26]} 25. Bxf8 {[%emt 00:00:03] [%clk
00:00:34]} Kxf8 {[%emt 00:00:09] [%clk 00:08:27]} 26. exd5 {[%emt 00:00:03]
[%clk 00:00:42]} Kg7 {[%emt 00:00:16] [%clk 00:08:20]} 27. Nc4 {[%emt 00:00:17]
[%clk 00:00:34]} Bxc4 {[%emt 00:00:09] [%clk 00:08:21]} 28. dxc4 {[%emt
00:00:06] [%clk 00:00:38]} Nc5 {[%emt 00:00:33] [%clk 00:07:59]} 29. Qa1 {[%emt
00:00:23] [%clk 00:00:25]} e4 {[%emt 00:00:22] [%clk 00:07:48]} 30. Re1 {[%emt
00:00:15] [%clk 00:00:20]} Nd3 {[%emt 00:00:16] [%clk 00:07:41]} 31. Rxe4 {[%emt
00:00:17] [%clk 00:00:13]} Qb5 {[%emt 00:00:12] [%clk 00:07:46]} 0-1

[Site "Europe Echecs"]

[Event "Championnat d'Europe Rapide"]
[Date "2024.12.08"]
[White "Tomasi, Elise"]
[Black "Djurovic, Peko"]
[WhiteElo "2073"]
[BlackElo "2253"]
[Round "8.53"]
[Result "1-0"]
[TimeControl "900+10"]

1. d4 {[%clk 00:15:16]} d5 {[%emt 00:00:04] [%clk 00:15:16]} 2. Nf3 {[%emt
00:00:02] [%clk 00:15:24]} Nf6 {[%emt 00:00:02] [%clk 00:15:24]} 3. g3 {[%emt
00:00:03] [%clk 00:15:32]} e6 {[%emt 00:00:05] [%clk 00:15:29]} 4. Bg2 {[%emt
00:00:01] [%clk 00:15:40]} h6 {[%emt 00:00:09] [%clk 00:15:31]} 5. O-O {[%emt
00:00:05] [%clk 00:15:45]} Bd6 {[%emt 00:00:03] [%clk 00:15:38]} 6. c4 {[%emt
00:00:04] [%clk 00:15:50]} O-O {[%emt 00:00:05] [%clk 00:15:43]} 7. Nc3 {[%emt
00:00:13] [%clk 00:15:47]} Nc6 {[%emt 00:00:11] [%clk 00:15:43]} 8. a3 {[%emt
00:01:00] [%clk 00:14:57]} dxc4 {[%emt 00:00:53] [%clk 00:15:00]} 9. Qa4 {[%emt
00:00:42] [%clk 00:14:25]} e5 {[%emt 00:00:49] [%clk 00:14:22]} 10. d5 {[%emt
00:01:15] [%clk 00:13:19]} Nd4 {[%emt 00:00:44] [%clk 00:13:47]} 11. Qxc4 {[%emt
00:00:20] [%clk 00:13:09]} Nxf3+ {[%emt 00:00:06] [%clk 00:13:51]} 12. Bxf3
{[%emt 00:00:09] [%clk 00:13:10]} a6 {[%emt 00:00:04] [%clk 00:13:58]} 13. Bg2
{[%emt 00:00:58] [%clk 00:12:22]} b5 {[%emt 00:00:04] [%clk 00:14:03]} 14. Qd3
{[%emt 00:00:25] [%clk 00:12:08]} Bb7 {[%emt 00:00:03] [%clk 00:14:10]} 15. e4
{[%emt 00:00:12] [%clk 00:12:06]} Qe7 {[%emt 00:00:09] [%clk 00:14:10]} 16. Be3
{[%emt 00:00:33] [%clk 00:11:44]} c6 {[%emt 00:00:27] [%clk 00:13:53]} 17. Rad1
{[%emt 00:02:50] [%clk 00:09:04]} cxd5 {[%emt 00:00:04] [%clk 00:14:00]} 18.
exd5 {[%emt 00:00:20] [%clk 00:08:53]} Bc8 {[%emt 00:01:22] [%clk 00:12:48]} 19.
a4 {[%emt 00:00:43] [%clk 00:08:20]} b4 {[%emt 00:00:10] [%clk 00:12:47]} 20.
Nb1 {[%clk 00:08:29]} a5 {[%emt 00:00:06] [%clk 00:12:51]} 21. Rfe1 {[%emt
00:00:16] [%clk 00:08:22]} Bg4 {[%emt 00:00:32] [%clk 00:12:31]} 22. Rc1 {[%emt
00:00:19] [%clk 00:08:12]} Bd7 {[%emt 00:00:47] [%clk 00:11:54]} 23. b3 {[%emt
00:00:05] [%clk 00:08:17]} Ng4 {[%emt 00:00:03] [%clk 00:12:01]} 24. Nd2 {[%emt
00:00:13] [%clk 00:08:15]} Nxe3 {[%emt 00:00:15] [%clk 00:11:56]} 25. fxe3
{[%emt 00:00:23] [%clk 00:08:01]} f5 {[%emt 00:01:03] [%clk 00:11:04]} 26. Nc4
{[%emt 00:00:45] [%clk 00:07:26]} e4 {[%emt 00:00:08] [%clk 00:11:06]} 27. Qd4
{[%emt 00:00:53] [%clk 00:06:43]} Bc5 {[%emt 00:00:37] [%clk 00:10:39]} 28. d6
{[%emt 00:00:16] [%clk 00:06:37]} Bxd4 {[%emt 00:00:38] [%clk 00:10:11]} 29.
dxe7 {[%emt 00:00:03] [%clk 00:06:44]} Bxe3+ {[%emt 00:00:02] [%clk 00:10:19]}
30. Nxe3 {[%emt 00:00:49] [%clk 00:06:05]} Rfc8 {[%emt 00:00:15] [%clk
00:10:14]} 31. Nc4 {[%emt 00:02:00] [%clk 00:04:15]} Ra7 {[%emt 00:03:13] [%clk
00:07:11]} 32. Nd6 {[%emt 00:01:11] [%clk 00:03:14]} Rb8 {[%emt 00:00:01] [%clk
00:07:20]} 33. Rc5 {[%emt 00:00:24] [%clk 00:03:00]} g6 {[%emt 00:01:28] [%clk
00:06:01]} 34. Rec1 {[%emt 00:00:08] [%clk 00:03:02]} Kg7 {[%emt 00:00:09] [%clk
00:06:02]} 35. Rc8 {[%emt 00:00:34] [%clk 00:02:39]} Rb6 {[%emt 00:02:04] [%clk
00:04:08]} 36. e8=Q {[%emt 00:00:47] [%clk 00:02:02]} Bxe8 {[%emt 00:00:02]
[%clk 00:04:16]} 37. Nxe8+ {[%emt 00:00:01] [%clk 00:02:10]} Kf7 {[%emt
00:00:02] [%clk 00:04:25]} 38. Nc7 {[%emt 00:00:17] [%clk 00:02:03]} Rab7 {[%emt
00:00:02] [%clk 00:04:33]} 39. Nb5 {[%emt 00:00:03] [%clk 00:02:09]} Kf6 {[%emt
00:00:20] [%clk 00:04:24]} 40. Kf2 {[%emt 00:00:23] [%clk 00:01:56]} Rd7 {[%emt
00:00:03] [%clk 00:04:30]} 41. R8c6+ {[%emt 00:01:07] [%clk 00:00:59]} Rxc6
{[%emt 00:00:02] [%clk 00:04:39]} 42. Rxc6+ {[%clk 00:01:08]} Ke5 {[%clk
00:04:48]} 43. Rc5+ {[%emt 00:00:17] [%clk 00:01:02]} Kf6 {[%emt 00:00:01] [%clk
00:04:56]} 44. Bf1 {[%emt 00:00:02] [%clk 00:01:11]} Rd2+ {[%clk 00:05:04]} 45.
Be2 {[%emt 00:00:02] [%clk 00:01:19]} g5 {[%emt 00:00:14] [%clk 00:05:00]} 46.
Nc7 {[%emt 00:00:29] [%clk 00:01:01]} f4 {[%emt 00:00:51] [%clk 00:04:19]} 47.
gxf4 {[%emt 00:00:05] [%clk 00:01:06]} gxf4 {[%emt 00:00:01] [%clk 00:04:27]}
48. Nd5+ {[%emt 00:00:15] [%clk 00:01:01]} Ke5 {[%emt 00:00:12] [%clk 00:04:26]}
49. Nc3+ {[%emt 00:00:13] [%clk 00:00:58]} Ke6 {[%clk 00:04:35]} 50. Nxe4 {[%emt
00:00:02] [%clk 00:01:06]} Rb2 {[%clk 00:04:43]} 51. Rxa5 {[%emt 00:00:09] [%clk
00:01:07]} Ke7 {[%emt 00:00:01] [%clk 00:04:52]} 52. Nc5 {[%emt 00:00:09] [%clk
00:01:08]} Rc2 {[%emt 00:00:09] [%clk 00:04:54]} 53. Rb5 {[%emt 00:00:02] [%clk
00:01:16]} Rc3 {[%emt 00:00:02] [%clk 00:05:02]} 54. a5 {[%emt 00:00:04] [%clk
00:01:22]} 1-0

[Site "Europe Echecs"]

[Event "Championnat d'Europe Rapide"]
[Date "2024.12.08"]
[White "Lauda, Alexandr"]
[Black "Mastrovasilis, Dimitrios"]
[WhiteElo "2255"]
[BlackElo "2537"]
[Round "8.54"]
[Result "0-1"]
[TimeControl "900+10"]

1. e4 {[%emt 00:00:01] [%clk 00:15:17]} c5 {[%emt 00:00:04] [%clk 00:15:16]} 2.
Nf3 {[%emt 00:00:03] [%clk 00:15:25]} e6 {[%emt 00:00:03] [%clk 00:15:23]} 3. d4
{[%emt 00:00:01] [%clk 00:15:34]} cxd4 {[%emt 00:00:03] [%clk 00:15:29]} 4. Nxd4
{[%emt 00:00:02] [%clk 00:15:42]} a6 {[%emt 00:00:03] [%clk 00:15:36]} 5. Bd3
{[%emt 00:00:03] [%clk 00:15:50]} g6 {[%emt 00:00:06] [%clk 00:15:39]} 6. c4
{[%emt 00:00:23] [%clk 00:15:37]} Bg7 {[%emt 00:00:05] [%clk 00:15:41]} 7. Ne2
{[%emt 00:00:06] [%clk 00:15:45]} Ne7 {[%emt 00:00:42] [%clk 00:15:09]} 8. Nbc3
{[%emt 00:00:08] [%clk 00:15:47]} O-O {[%emt 00:00:04] [%clk 00:15:14]} 9. O-O
{[%emt 00:00:09] [%clk 00:15:48]} Nbc6 {[%emt 00:00:14] [%clk 00:15:10]} 10. Bg5
{[%emt 00:00:24] [%clk 00:15:35]} h6 {[%emt 00:01:06] [%clk 00:14:14]} 11. Bh4
{[%emt 00:00:08] [%clk 00:15:36]} g5 {[%emt 00:00:52] [%clk 00:13:32]} 12. Bg3
{[%emt 00:00:02] [%clk 00:15:45]} Ne5 {[%emt 00:00:02] [%clk 00:13:39]} 13. Rc1
{[%emt 00:00:15] [%clk 00:15:41]} N7g6 {[%emt 00:00:30] [%clk 00:13:19]} 14. b3
{[%emt 00:00:11] [%clk 00:15:40]} b5 {[%emt 00:00:52] [%clk 00:12:37]} 15. c5
{[%emt 00:00:46] [%clk 00:15:05]} Bb7 {[%emt 00:00:20] [%clk 00:12:26]} 16. Bb1
{[%emt 00:00:20] [%clk 00:14:54]} Qe7 {[%emt 00:01:15] [%clk 00:11:21]} 17. b4
{[%emt 00:00:14] [%clk 00:14:51]} Rad8 {[%emt 00:00:02] [%clk 00:11:29]} 18. f4
{[%emt 00:02:24] [%clk 00:12:37]} gxf4 {[%emt 00:00:02] [%clk 00:11:37]} 19.
Nxf4 {[%emt 00:00:11] [%clk 00:12:36]} Nxf4 {[%emt 00:00:05] [%clk 00:11:41]}
20. Bxf4 {[%emt 00:00:04] [%clk 00:12:43]} d6 {[%emt 00:00:02] [%clk 00:11:48]}
21. Qh5 {[%emt 00:00:23] [%clk 00:12:31]} Qf6 {[%emt 00:01:36] [%clk 00:10:22]}
22. cxd6 {[%emt 00:01:01] [%clk 00:11:40]} Rxd6 {[%emt 00:00:14] [%clk
00:10:17]} 23. Be3 {[%emt 00:00:21] [%clk 00:11:29]} Qg6 {[%emt 00:00:12] [%clk
00:10:16]} 24. Qxg6 {[%emt 00:00:16] [%clk 00:11:23]} fxg6 {[%emt 00:00:06]
[%clk 00:10:20]} 25. Rxf8+ {[%emt 00:00:39] [%clk 00:10:53]} Bxf8 {[%emt
00:00:03] [%clk 00:10:28]} 26. Ne2 {[%emt 00:00:10] [%clk 00:10:52]} Nc4 {[%emt
00:00:30] [%clk 00:10:09]} 27. Bc5 {[%emt 00:00:08] [%clk 00:10:54]} Rd2 {[%emt
00:01:02] [%clk 00:09:17]} 28. Kf2 {[%emt 00:01:11] [%clk 00:09:53]} Rb2 {[%emt
00:02:17] [%clk 00:07:10]} 29. Bd3 {[%emt 00:04:24] [%clk 00:05:39]} Ne5 {[%emt
00:00:34] [%clk 00:06:45]} 30. Bc2 {[%emt 00:00:57] [%clk 00:04:52]} Rxa2 {[%emt
00:00:49] [%clk 00:06:06]} 31. Kf1 {[%emt 00:00:56] [%clk 00:04:07]} Nc4 {[%emt
00:01:35] [%clk 00:04:41]} 32. Nf4 {[%emt 00:01:33] [%clk 00:02:43]} Bxc5 {[%emt
00:00:25] [%clk 00:04:26]} 33. bxc5 {[%emt 00:00:13] [%clk 00:02:41]} Rxc2
{[%emt 00:00:42] [%clk 00:03:54]} 0-1

[Site "Europe Echecs"]